Cogmind - Beta 10.1 @@@ ROGUE MODE // 2020.10.28 @ 14:21:22 Player: Atherys Result: Destroyed by Y-45 Defender with Heavy Assault Rifle Performance ------------- Evolutions (1) 500 Regions Visited (2) 400 Robots Destroyed (1) 5 Value Destroyed (5) 5 Prototype IDs (0) 0 Alien Tech Used (0) 0 Bonus (200) 200 TOTAL SCORE: 1110 Bonus ------- Pacifist 200 Cogmind --------- Core Integrity 0/400 Matter 156/300 Energy 99/100 System Corruption 0% Temperature Cool (9) Movement Core (100) Ox1 Location -9/Materials Parts ------- > --- POWER (2) -------- (None) > --- PROPULSION (3) --- (None) > --- UTILITY (2) ------ Small Storage Unit > --- WEAPON (2) ------- (None) > --- INVENTORY (6) ---- Particle Gun Grenade Launcher Peak State ------------ > --- POWER ------------ Light Ion Engine > --- PROPULSION ------- Aluminum Leg Aluminum Leg > --- UTILITY ---------- Small Storage Unit > --- WEAPON ----------- EM Pulse Gun Assault Rifle > --- INVENTORY -------- (None) [Rating: 6] Favorites ----------- Power Light Ion Engine Engine Light Ion Engine Propulsion Aluminum Leg Leg Aluminum Leg Utility Small Storage Unit Storage Small Storage Unit Weapon Assault Rifle Energy Gun EM Pulse Gun Ballistic Gun Assault Rifle Build | -11 -10 -9 ------- Run | Scr Mat Mat Slots Evolved 2 | . . 2 Power 1 | . . 1 Propulsion 1 | . . 1 Utility . | . . . Weapon . | . . . Parts Attached 6 | 6 . . Power 1 | 1 . . Engine 1 | 1 . . Core . | . . . Reactor . | . . . Propulsion 2 | 2 . . Treads . | . . . Leg 2 | 2 . . Wheel . | . . . Hover . | . . . Flight . | . . . Utility 1 | 1 . . Device . | . . . Storage 1 | 1 . . Processor . | . . . Hackware . | . . . Protection . | . . . Artifact . | . . . Weapon 2 | 2 . . Energy Gun 1 | 1 . . Energy Cannon . | . . . Ballistic Gun 1 | 1 . . Ballistic Cannon . | . . . Launcher . | . . . Special Weapon . | . . . Impact Weapon . | . . . Slashing Weapon . | . . . Piercing Weapon . | . . . Special Melee Weapon . | . . . Unidentified Prototypes . | . . . Parts Lost 5 | . . 5 Power 1 | . . 1 Propulsion 2 | . . 2 Utility . | . . . Weapon 2 | . . 2 Highest Loss Streak 2 | . . 2 Average Slot Usage (%) 59 | . 85 53 Engine 8 | . 14 7 Leg 21 | . 28 19 Storage 11 | . 14 11 Energy Gun 7 | . 14 5 Ballistic Gun 11 | . 14 10 Naked Turns . | . . . Heaviest Build 11 | 11 11 11 Greatest Support 20 | 20 20 20 Greatest Overweight (x) 1 | . . 1 Average Overweight (x) . | . . . Largest Inventory Capacity 6 | 6 6 6 Average Capacity 5 | 4 6 6 Most Carried 2 | . 1 2 Average Carried 1 | . . 1 Final Capacity 6 | 6 6 6 Final Carried 2 | . 1 2 Class Distribution -------------------- 100% | Mutant Dominant Class ---------------- Mutant | -10/Materials Mutant | -9/Materials Resources | -11 -10 -9 ----------- Run | Scr Mat Mat Matter Collected 72 | 55 . 17 Remotely . | . . . Salvage Created 17 | . . 17 Parts 3 | . . 3 Haulers Intercepted . | . . . Recyclers Shooed . | . . . Parts Field Recycled . | . . . Retrieved Matter . | . . . Parts Self-Destructed . | . . . Prevented . | . . . Kills | -11 -10 -9 ------- Run | Scr Mat Mat Combat Hostiles Destroyed . | . . . Classes Destroyed 1 | . . 1 Builder 1 | . . 1 Best Kill Streak 1 | . . 1 Combat Bots Only . | . . . Max Kills in Single Turn 1 | . . 1 Gunslinging . | . . . Exploded . | . . . Melee . | . . . Uniques/NPCs Destroyed . | . . . Combat | -11 -10 -9 -------- Run | Scr Mat Mat Damage Taken 925 | . 60 865 Core 433 | . 27 406 Absorbed by Shields . | . . . Core Remaining (%) 94 | 100 89 . Volleys Fired 1 | . . 1 Largest 2 | . . 2 Hottest 60 | . . 60 Shots Fired 2 | . . 2 Gun 2 | . . 2 Cannon . | . . . Launcher . | . . . Special . | . . . Kinetic 1 | . . 1 Thermal . | . . . Explosive . | . . . Electromagnetic 1 | . . 1 Robot Hit Streak . | . . . Robot Miss Streak . | . . . Penetration Max . | . . . Secondary Targets . | . . . Shots Hit Robots . | . . . Core Hits 2 | . . 2 Critical Hits . | . . . Critical Kills . | . . . Critical Parts Destroyed . | . . . Melee Attacks . | . . . Impact . | . . . Slashing . | . . . Piercing . | . . . Sneak Attacks . | . . . Combat Hostiles . | . . . Follow-up Attacks . | . . . Damage Inflicted 29 | . . 29 Guns 27 | . . 27 Cannons . | . . . Explosions . | . . . Melee . | . . . Ramming 2 | . . 2 Kinetic 12 | . . 12 Thermal . | . . . Explosive . | . . . Electromagnetic 15 | . . 15 Impact . | . . . Slashing . | . . . Piercing . | . . . Highest Corruption . | . . . Average Corruption . | . . . Corruption Purged . | . . . Overload Shots . | . . . Overflow Damage . | . . . Projectiles . | . . . Explosions . | . . . Melee . | . . . Knockbacks . | . . . Impact . | . . . Kinetic . | . . . Secondary . | . . . Self-Inflicted Damage 1 | . . 1 Shots . | . . . Rammed 5 | . . 5 Targets Rammed 6 | . . 6 Kicked 1 | . . 1 Crushed . | . . . Highest Temperature . | . . . Average Temperature . | . . . Received Heat Transfer 354 | . 30 324 Siege Activations . | . . . Robots Corrupted . | . . . Combat Hostiles . | . . . Parts Fried . | . . . Impact Corruptions . | . . . Robots Melted . | . . . Combat Hostiles . | . . . Parts Melted . | . . . Heat Transferred . | . . . Parts Sabotaged . | . . . Parts Stolen . | . . . Parts Stripped . | . . . Power Chain Reactions . | . . . Missiles Intercepted . | . . . Alert | -11 -10 -9 ------- Run | Scr Mat Mat Peak Influence 72 | . . 72 Initial . | . . . Average 29 | . . 41 Maximum Alert Level . | . . . Low Security (%) 100 | 100 100 100 Level 1 . | . . . Level 2 . | . . . Level 3 . | . . . Level 4 . | . . . Level 5 . | . . . High Security . | . . . Max Security . | . . . Squads Dispatched 1 | . . 1 Investigation 1 | . . 1 Extermination . | . . . Reinforcement . | . . . Assault . | . . . Garrison . | . . . Intercept . | . . . Construction Impeded . | . . . Haulers Reinforced . | . . . Stealth | -11 -10 -9 --------- Run | Scr Mat Mat Distress Signals 2 | . 1 1 Communications Jammed . | . . . Distress Signals . | . . . Times Spotted 25 | . 8 17 Peak Tracking Total 11 | . 7 11 Tactical Retreats 4 | . . 4 Traps | -11 -10 -9 ------- Run | Scr Mat Mat Traps Triggered 1 | . . 1 Indirectly . | . . . Trap Hack Attempts . | . . . Triggered . | . . . Disarmed . | . . . Reprogrammed . | . . . Reused . | . . . Traps Extracted . | . . . Installed . | . . . Triggered . | . . . Machines | -11 -10 -9 ---------- Run | Scr Mat Mat Machines Disabled . | . . . Max in Single Turn . | . . . Machines Sabotaged . | . . . Garrisons Compromised . | . . . Overloaded Fab Kills . | . . . Fab Network Shutdowns . | . . . Hacking | -11 -10 -9 --------- Run | Scr Mat Mat Machines Accessed 2 | . . 2 Terminals 2 | . . 2 Fabricators . | . . . Repair Stations . | . . . Recycling Units . | . . . Scanalyzers . | . . . Garrison Access . | . . . Total Hacks 8 | . . 8 Successful 6 | . . 6 Failed 2 | . . 2 Catastrophic . | . . . Database Lockouts . | . . . Manual 7 | . . 7 Terminals 8 | . . 8 Fabricators . | . . . Repair Stations . | . . . Recycling Units . | . . . Scanalyzers . | . . . Garrison Access . | . . . Terminal Hacks 1 | . . 1 Zone Layout 1 | . . 1 Fabricator Hacks . | . . . Repair Station Hacks . | . . . Recycling Unit Hacks . | . . . Scanalyzer . | . . . Garrison Access Hacks . | . . . Unauthorized Hacks 5 | . . 5 Terminals 5 | . . 5 Track 1 | . . 1 Assimilate 1 | . . 1 Botnet 2 | . . 2 Operators 1 | . . 1 Fabricators . | . . . Repair Stations . | . . . Recycling Units . | . . . Scanalyzers . | . . . Garrison Access . | . . . Data Cores Recovered . | . . . Used . | . . . Hacking Detections 1 | . . 1 Full Trace Events . | . . . Feedback Events . | . . . Feedback Blocked . | . . . Robot Schematics Acquired . | . . . Robots Built . | . . . Matter . | . . . Time . | . . . Total Robot Build Rating . | . . . Part Schematics Acquired . | . . . Parts Built . | . . . Matter . | . . . Time . | . . . Total Part Build Rating . | . . . Parts Repaired . | . . . Time . | . . . Parts Recycled . | . . . Recycled Matter . | . . . Retrieved Matter . | . . . Retrieved Components . | . . . Parts Scanalyzed . | . . . Part Schematics Acquired . | . . . Parts Damaged . | . . . Bothacking | -11 -10 -9 ------------ Run | Scr Mat Mat Used RIF Installer . | . . . Robots Hacked . | . . . Non-combat . | . . . Combat . | . . . Robot Hacks Applied . | . . . Relay Couplers Released . | . . . Robots Rewired . | . . . Allies Hacked . | . . . Hacks Repelled . | . . . Allies | -11 -10 -9 -------- Run | Scr Mat Mat Total Allies . | . . . Largest Group . | . . . Highest-Rated Group . | . . . Highest-Rated Ally . | . . . Total Orders . | . . . Ally Attacks . | . . . Total Damage . | . . . Kills . | . . . Allies Corrupted . | . . . Allies Melted . | . . . Intel | -11 -10 -9 ------- Run | Scr Mat Mat Robot Analysis Total . | . . . Derelict Logs Recovered . | . . . Drone Launches . | . . . Drone Recoveries . | . . . Exploration | -11 -10 -9 ------------- Run | Scr Mat Mat Turns Passed 466 | 47 91 328 Spaces Moved 379 | 35 76 268 Core 25 | 5 . 20 Treads . | . . . Legs 354 | 30 76 248 Wheels . | . . . Hover . | . . . Flight . | . . . Fastest Speed 50 | 50 120 100 Average Speed 118 | 110 120 118 Slowest Speed 120 | 120 120 120 Overloaded Moves . | . . . Propulsion Burnouts . | . . . Robots Hopped . | . . . Cave-ins Triggered . | . . . Exploration Rate (%) 24 | 3 28 43 Regions Visited 2 Branch Regions . Pre-discovered Areas . | . . . Known Exits Taken . | . . . Unknown Exits Taken 2 | 1 1 . Scrap Searched . | . . . Spaces Dug . | . . . Terrain Destroyed . | . . . Melee . | . . . Projectile . | . . . AOE . | . . . Terrain Rammed . | . . . Walls Destroyed . | . . . Machines Disabled . | . . . Actions | -11 -10 -9 --------- Run | Scr Mat Mat Total 392 | 40 76 276 Wait . | . . . Move 377 | 34 75 268 Hop . | . . . Pick Up 2 | . 1 1 Fast Attach 6 | 6 . . Attach . | . . . Detach . | . . . Swap . | . . . Drop . | . . . Fire 1 | . . 1 Melee . | . . . Ram 2 | . . 2 Kick 4 | . . 4 Crush . | . . . Escape Stasis . | . . . Rewire . | . . . Trap . | . . . Miscellaneous . | . . . Route ------- -11/Scrapyard -10/Materials -9/Materials History --------- Turn | Location | Event 3 | -11/Scrapyard | Discovered new exit (range 15) 48 | -11/Scrapyard | Entered Materials 129 | -10/Materials | Discovered new exit (range 11) 139 | -10/Materials | Entered another Materials area 139 | -9/Materials | Evolved 2 slots: Power x1, Propulsion x1 315 | -9/Materials | Build established: Mutant 455 | -9/Materials | Core integrity fell below 50% 462 | -9/Materials | Core integrity fell below 20% 467 | -9/Materials | Destroyed by Y-45 Defender with Heavy Assault Rifle Last Messages --------------- 00271_ R-06 Scavenger collects Lgt. Ion Engine. 00294_ K-01 Serf cleans the Fusion Modulator. 00295_ C-30 ARC bursts open, deploying its payload. 00295_ B-36 Bruiser unfolds itself. 00295_ G-34 Mercenary unfolds itself. 00297_ EM Pulse Gun destroyed. 00297_ K-01 Serf cleans the Fusion Modulator. 00299_ Triggered Alarm Trap. 00299_ An alarm sounds. 00299_ ALERT: Alarm triggered, dispatching investigation squad. 00345_ Lgt. Ion Engine destroyed. 00352_ Slammed into A-02 Transporter. 00362_ Kicked A-02 Transporter out of the way. 00402_ Aluminum Leg destroyed. 00412_ Slammed into W-16 Scout. 00444_ Assault Rifle destroyed. 00446_ Aluminum Leg destroyed. 00460_ Slammed into Y-45 Defender. 00460_ Destabilizing: Core damaged (-4). 00461_ Slammed into Y-45 Defender. Map ----- +----------------------------------------------------+ | ??????????????# #???????? " | | ??????????????# "S #????????? " | | ????###???????# """ ! #????????? ? | | ????# ######## "" ############## | | ????# # """ ?# + | | ????# # "R" ?# """ ############## | | ????# # " "??# """ #????????????? | | ????# # ??# """ #????????????? | | ????# # ! ???# #????????????? | | ????# # ???#####+####????????????? | | ????# ##+####### #??????????????? | | ????# #??????????????? | | ????# #??????????????? | | ?######### ##### #??????????????? | | # T # #???# ##??????????????? | | # /g #??? !#???????????????? | | # # #??? !#???????????????? | | # """ # #??!!!!##???????????????? | | # """ # #??#####????????????????? | | # ! """ #YY#???????????????????????? | | ? # #???????????????????????? | | ?######### #???????????????????????? | | # ??## ##????" ???????????????? | | # # #??""" ???????????????? | | # t # """ #?????????????? | | # # @/ #?????????????? | | ????????# # """ ""#?????????????? | | ????????######??""" Y???????????????? | | ??????????????????" "???????????????? | | ????????????????????????????????????? | | ????????????????????????????????????? | | ????????????????????????????????????? | | ????????????????????????????????????? | | ????????????????????????????????????? | | ????????????????????????????????????? | | ????????????????????????????????????? | | ????????????????????????????????????? | | ????????????????????????????????????? | | ????????????????????????????????????? | | ????????????????????????????????????? | | ????????????????????????????????????? | | ????????????????????????????????????? | | ????????????????????????????????????? | | ????????????????????????????????????? | | ????????????????????????????????????? | | ????????????????????????????????????? | | ????????????????????????????????????? | | ????????????????????????????????????? | | ????????????????????????????????????? | | ????????????????????????????????????? | +----------------------------------------------------+ Best States ------------- Heat Dissipation 28 Energy Generation 10 Energy Capacity 125 Matter Stores 149 Matter Capacity 300 Sight Range 16 Terrain Scan Density 10 Evasion (%) 40 Item Schematics ----------------- None Robot Schematics ------------------ None Fabricated ------------ Nothing Alien Tech Used ----------------- None Achievements -------------- None Challenges ------------ None Game ------ Seed CouplerGyrokineticMatrix Manual? 0 Play Time 00:04:54 Cumulative 21.2 hours Start 2020.10.28 @ 14:16:43 End 2020.10.28 @ 14:21:22 Sessions 1 Manual Loads 0 Difficulty Rogue Special Mode None Game No. 43 Rogue 43 Adventurer 0 Explorer 0 Win Type - Total 0 Types 0/0/0/0/0/0/0/0/0 Lore% 20 Gallery% 25 Achievement% 23 Wizard Run 0 Options --------- ASCII 0 Keyboard 0 Movement Mouse Keybinds 0 Fullscreen 2 Font 24/Smallcaps Map View 76x50 Tactical HUD 1 Map Filters NONE Filters NONE Steam X RUN: 70d3b6ed-521b-4e8e-85d6-9a2d1ba11044